bitfinex/quotes_BTCUSD_20230106
["timestamp","ask_amount","ask_price","bid_price","bid_amount"]
[1673037493471,3.43181354,16966.0,16965.0,0.01202116]
[1673037494730,3.25510181,16966.0,16965.0,0.01202116]
[1673037495496,3.25510181,16966.0,16965.0,0.01168133]
[1673037496244,2.99013083,16966.0,16965.0,0.0113415]
[1673037496498,3.25510181,16966.0,16965.0,0.0113415]
[1673037496749,3.25510181,16966.0,16965.0,0.01100167]
[1673037497017,3.25510181,16966.0,16965.0,0.01066184]
[1673037497525,3.25510181,16966.0,16965.0,0.01032201]
[1673037497780,3.25510181,16966.0,16965.0,0.00998218]
[1673037498294,3.25510181,16966.0,16965.0,0.00964235]
[1673037498545,2.99013083,16966.0,16965.0,0.00964235]
[1673037498793,2.99013083,16966.0,16965.0,0.00930252]
[1673037499017,3.25510181,16966.0,16965.0,0.00930252]
[1673037499275,3.25510181,16966.0,16965.0,0.00896269]
[1673037499532,3.25510181,16966.0,16965.0,0.00862286]
[1673037500031,3.25510181,16966.0,16965.0,0.00833403]
[1673037500293,2.99013083,16966.0,16965.0,0.0079942]
[1673037500798,2.99013083,16966.0,16965.0,0.00765437]
[1673037501303,2.99013083,16966.0,16965.0,0.00731454]
[1673037501562,2.25541683,16966.0,16965.0,0.00697471]
[1673037501819,0.81440379,16966.0,16965.0,0.00697471]
[1673037502123,0.81440379,16966.0,16965.0,0.00663488]
[1673037502344,0.81440379,16966.0,16965.0,0.00629505]
[1673037502565,0.30605571,16966.0,16965.0,0.48029505]
[1673037502860,0.30605571,16966.0,16965.0,1.65919105]
[1673037503116,0.30605571,16966.0,16965.0,1.35839723]
[1673037503367,0.30605571,16966.0,16965.0,1.3580574]
[1673037503623,0.30605571,16966.0,16965.0,0.7686094]
[1673037503879,0.30605571,16966.0,16965.0,0.76832058]
[1673037504143,0.30605571,16966.0,16965.0,0.76841447]
[1673037504386,0.30605571,16966.0,16965.0,0.76798075]
[1673037504650,0.30605571,16966.0,16965.0,1.65708892]
[1673037505167,0.30605571,16966.0,16965.0,1.65674909]
[1673037505430,0.30605571,16966.0,16965.0,1.35640926]
[1673037505676,0.30605571,16966.0,16965.0,0.94096126]
[1673037505935,0.30605571,16966.0,16965.0,0.94062143]
[1673037506184,0.30605571,16966.0,16965.0,0.93869824]
[1673037506635,0.30605571,16966.0,16965.0,0.93835841]
[1673037507146,0.30605571,16966.0,16965.0,0.93806944]
[1673037507404,0.30605571,16966.0,16965.0,0.93772961]
[1673037507910,0.30605571,16966.0,16965.0,0.93755035]
[1673037508162,0.30605571,16966.0,16965.0,0.93721052]
[1673037508685,0.30605571,16966.0,16965.0,0.93687069]
[1673037509205,0.30605571,16966.0,16965.0,0.93653086]
[1673037509468,0.30605571,16966.0,16965.0,0.93619103]
[1673037509924,0.30605571,16966.0,16965.0,0.9358512]
[1673037510421,0.30605571,16966.0,16965.0,0.763448]
[1673037510668,0.30605571,16966.0,16965.0,0.76310817]
[1673037511148,0.30605571,16966.0,16965.0,0.76276834]
[1673037511679,0.30605571,16966.0,16965.0,0.76242851]
[1673037512191,0.30605571,16966.0,16965.0,0.76208868]
[1673037512711,0.30605571,16966.0,16965.0,0.76174885]
[1673037513184,0.30605571,16966.0,16965.0,0.76140902]
[1673037513694,0.30605571,16966.0,16965.0,0.76106919]
[1673037513949,0.30605571,16966.0,16965.0,0.76085079]
[1673037514450,0.30605571,16966.0,16965.0,0.75971762]
[1673037514950,0.30605571,16966.0,16965.0,0.75926076]
[1673037515448,0.30605571,16966.0,16965.0,0.75892093]
[1673037516435,0.30605571,16966.0,16965.0,0.174]
[1673037516685,0.30605571,16966.0,16965.0,0.17366017]
[1673037517186,0.30605571,16966.0,16965.0,0.17348068]
[1673037517439,0.87387048,16966.0,16965.0,0.17348068]
[1673037517696,1.05045572,16966.0,16965.0,0.17314085]
[1673037517920,1.65622572,16966.0,16965.0,0.17280102]
[1673037518175,2.16466066,16966.0,16965.0,0.17280102]
[1673037518421,2.16466066,16966.0,16965.0,0.17246119]
[1673037518653,1.55889066,16966.0,16965.0,0.17212136]
[1673037519128,1.55889066,16966.0,16965.0,0.17178153]
[1673037519579,1.55889066,16966.0,16965.0,0.1714417]
[1673037520127,1.55889066,16966.0,16965.0,0.1712621]
[1673037520407,1.55889066,16966.0,16965.0,0.17092227]
[1673037520894,1.55889066,16966.0,16965.0,0.17058244]
[1673037521208,1.55889066,16966.0,16965.0,0.17024261]
[1673037521480,2.16466066,16966.0,16965.0,0.16990278]
[1673037521953,1.57838966,16966.0,16965.0,0.16956295]
[1673037522167,1.55889066,16966.0,16965.0,0.16956295]
[1673037522429,2.16466066,16966.0,16965.0,0.16922312]
[1673037522680,2.42963164,16966.0,16965.0,0.16888329]
[1673037522928,1.82386164,16966.0,16965.0,0.16888329]
[1673037523168,2.42963164,16966.0,16965.0,0.16854346]
[1673037523665,2.42963164,16966.0,16965.0,0.16820363]
[1673037523912,2.42963164,16966.0,16965.0,0.1678638]
[1673037524403,2.42963164,16966.0,16965.0,0.16752397]
[1673037524653,2.42963164,16966.0,16965.0,0.16718414]
[1673037524905,1.55889066,16966.0,16965.0,0.16718414]
[1673037525166,1.38230542,16966.0,16965.0,0.16684431]
[1673037525419,1.55889066,16966.0,16965.0,0.16684431]
[1673037525637,1.55889066,16966.0,16965.0,0.16650448]
[1673037525855,1.55889066,16966.0,16965.0,0.16616465]
[1673037526106,1.82386164,16966.0,16965.0,0.16616465]
[1673037526368,1.82386164,16966.0,16965.0,0.16582482]
[1673037526622,2.42963164,16966.0,16965.0,0.16582482]
[1673037526885,2.42963164,16966.0,16965.0,0.16502818]
[1673037527143,1.82386164,16966.0,16965.0,0.16423154]
[1673037527642,1.82386164,16966.0,16965.0,0.1634349]
[1673037527894,1.55889066,16966.0,16965.0,0.16263826]
[1673037528393,1.55889066,16966.0,16964.0,0.77763302]
[1673037528648,1.55889066,16966.0,16965.0,0.17320336]
[1673037529148,0.99107589,16966.0,16965.0,0.17240672]
[1673037529425,0.85707589,16966.0,16965.0,0.17240672]
[1673037529645,1.25704687,16966.0,16965.0,0.17161008]
[1673037529899,1.40995944,16966.0,16965.0,0.17081344]
[1673037530149,1.49495944,16966.0,16965.0,0.17381344]
[1673037530373,1.40995944,16966.0,16965.0,0.1700168]
[1673037530597,1.42195944,16966.0,16965.0,0.1750168]
[1673037530816,0.86907589,16966.0,16965.0,0.17422016]
[1673037531074,0.86907589,16966.0,16965.0,0.17406298]
[1673037531531,1.13404687,16966.0,16965.0,0.17406298]
[1673037531553,1.13404687,16966.0,16965.0,0.17390639]
[1673037531795,1.82404,16966.0,16965.0,0.1737498]
[1673037532244,1.82404,16966.0,16965.0,0.179]
[1673037532739,1.82404,16966.0,16965.0,0.17884281]
[1673037532951,1.82404,16966.0,16965.0,0.17789334]
[1673037533453,1.82404,16966.0,16965.0,0.17773615]
[1673037533708,2.42981,16966.0,16965.0,0.17773615]
[1673037533949,2.17733697,16966.0,16965.0,0.17757896]
[1673037534218,2.78310697,16966.0,16965.0,0.17742177]
[1673037534470,2.00075173,16966.0,16965.0,0.17742177]
[1673037534690,2.60652173,16966.0,16965.0,0.17726458]
[1673037535212,2.60652173,16966.0,16965.0,0.17710739]
[1673037535471,3.04815162,16966.0,16965.0,0.1769502]
[1673037535734,2.17741064,16966.0,16965.0,0.1769502]
[1673037535981,2.78318064,16966.0,16965.0,0.17679301]
[1673037536236,2.78318064,16966.0,16965.0,0.17663582]
[1673037536741,2.78318064,16966.0,16965.0,0.17647863]
[1673037536986,2.78318064,16966.0,16965.0,0.17632144]
[1673037537240,3.01300252,16966.0,16965.0,0.17632144]
[1673037537486,3.01300252,16966.0,16965.0,0.17616425]
[1673037537731,2.78318064,16966.0,16965.0,0.17616425]
[1673037537972,2.78318064,16966.0,16965.0,0.17600706]
[1673037538217,2.78318064,16966.0,16965.0,0.17584987]
[1673037538462,2.09318751,16966.0,16965.0,0.17584987]
[1673037538715,2.3583794,16966.0,16965.0,0.17584987]
[1673037539265,2.75038721,16966.0,16965.0,0.17584987]
[1673037539753,3.01557602,16966.0,16965.0,0.17584987]
[1673037540269,2.57394613,16966.0,16965.0,0.17584987]
[1673037540516,3.01557602,16966.0,16965.0,0.17584987]
[1673037541245,2.57394613,16966.0,16965.0,0.17584987]
[1673037541745,1.96817613,16966.0,16965.0,0.17584987]
[1673037541988,2.14498124,16966.0,16965.0,0.17584987]
[1673037542235,1.79168427,16966.0,16965.0,0.17584987]
[1673037542484,1.96817613,16966.0,16965.0,0.17584987]
[1673037546610,1.13456577,16966.0,16965.0,0.17584987]
[1673037547086,1.83630087,16966.0,16965.0,0.17584987]
[1673037547333,2.44207087,16966.0,16965.0,0.17584987]
[1673037547611,1.83630087,16966.0,16965.0,0.17584987]
[1673037548597,2.18959784,16966.0,16965.0,0.17584987]
[1673037548840,2.18959913,16966.0,16965.0,0.17584987]
[1673037549092,2.61848153,16966.0,16965.0,0.17584987]
[1673037549615,2.01271153,16966.0,16965.0,0.17584987]
[1673037549833,2.61848153,16966.0,16965.0,0.17584987]
[1673037550349,2.61848153,16966.0,16965.0,0.16584987]
[1673037550603,2.01271153,16966.0,16965.0,0.16584987]
[1673037550845,2.61848153,16966.0,16965.0,0.16584987]
[1673037551085,2.03221053,16966.0,16965.0,0.16584987]
[1673037552056,2.01271153,16966.0,16965.0,0.16584987]
[1673037552270,2.1894827,16966.0,16965.0,0.16584987]
[1673037552532,2.01271153,16966.0,16965.0,0.16584987]
[1673037552830,2.18948649,16966.0,16965.0,0.16584987]
[1673037553081,2.189494,16966.0,16965.0,0.16584987]
[1673037553352,2.18949979,16966.0,16965.0,0.16584987]
[1673037553857,2.01271153,16966.0,16965.0,0.16584987]
[1673037557901,2.45439289,16966.0,16965.0,0.16584987]
[1673037558157,2.79492261,16966.0,16965.0,0.16584987]
[1673037558404,2.18915261,16966.0,16965.0,0.16584987]
[1673037558898,3.06003534,16966.0,16965.0,0.16584987]
[1673037559141,2.79492261,16966.0,16965.0,0.16584987]
[1673037559392,2.18915261,16966.0,16965.0,0.16584987]
[1673037559626,2.79492261,16966.0,16965.0,0.16584987]
[1673037560139,2.18915261,16966.0,16965.0,0.16584987]
[1673037560409,2.79492261,16966.0,16965.0,0.16584987]
[1673037560717,2.18915261,16966.0,16965.0,0.16584987]
[1673037560954,2.79492261,16966.0,16965.0,0.16584987]
[1673037561522,2.99648592,16966.0,16965.0,0.16584987]
[1673037561949,2.39071592,16966.0,16965.0,0.16584987]
[1673037562186,2.99648592,16966.0,16965.0,0.16584987]
[1673037563943,3.58589992,16966.0,16965.0,0.16584987]
[1673037564197,2.99962892,16966.0,16965.0,0.16584987]
[1673037565432,2.57384343,16966.0,16965.0,0.16584987]
[1673037567218,2.0930057,16966.0,16965.0,0.16584987]
[1673037567466,2.62267737,16966.0,16964.0,0.01415102]
[1673037567721,1.15181413,16965.0,16964.0,0.01415102]
[1673037568004,2.29436064,16965.0,16964.0,0.01415102]
[1673037568519,2.8388694,16965.0,16964.0,0.01915102]
[1673037568767,2.63730609,16965.0,16964.0,0.01415102]
[1673037569088,2.24105063,16965.0,16964.0,0.03115102]
[1673037569364,2.84682063,16965.0,16964.0,0.03115102]
[1673037569622,2.30656442,16965.0,16964.0,0.03115102]
[1673037569876,1.688122,16965.0,16964.0,0.20425102]
[1673037570127,0.87858911,16965.0,16964.0,0.20425102]
[1673037570386,0.87858911,16965.0,16964.0,0.81002102]
[1673037571395,0.87858911,16965.0,16964.0,0.20425102]
[1673037571705,0.87858911,16965.0,16964.0,0.37825102]
[1673037571909,0.87858911,16965.0,16964.0,0.98402102]
[1673037572148,1.14361324,16965.0,16964.0,0.37825102]
[1673037573438,1.14361324,16965.0,16964.0,0.98402102]
[1673037573709,1.14361324,16965.0,16964.0,0.37825102]
[1673037575487,1.49700904,16965.0,16964.0,0.37825102]
[1673037575769,1.14361324,16965.0,16964.0,0.37825102]
[1673037576844,1.49700904,16965.0,16964.0,0.37825102]
[1673037577277,1.14361324,16965.0,16964.0,0.37825102]
[1673037577532,2.20235773,16965.0,16964.0,0.37825102]
[1673037578102,2.20239435,16965.0,16964.0,0.37814072]
[1673037578359,2.20235587,16965.0,16964.0,0.37814072]
[1673037578614,2.02567113,16965.0,16964.0,0.37814072]
[1673037578871,2.20235266,16965.0,16964.0,0.37814072]
[1673037579128,2.80811398,16965.0,16964.0,0.37814072]
[1673037579890,2.20234398,16965.0,16964.0,0.37814072]
[1673037580139,2.20234398,16965.0,16964.0,0.37823462]
[1673037580395,1.84894818,16965.0,16964.0,0.37814072]
[1673037581634,1.84894818,16965.0,16964.0,0.37823462]
[1673037581873,1.84894818,16965.0,16964.0,0.37814072]
[1673037582126,2.45471818,16965.0,16964.0,0.37814072]
[1673037582375,1.86844718,16965.0,16964.0,0.20504072]
[1673037583363,2.22184298,16965.0,16964.0,0.20504072]
[1673037583606,2.22186713,16965.0,16964.0,0.20504072]
[1673037583856,2.20236813,16965.0,16964.0,0.20504072]
[1673037584119,2.63144113,16965.0,16964.0,0.20504072]
[1673037584364,2.80813023,16965.0,16964.0,0.20504072]
[1673037584636,2.02567113,16965.0,16964.0,0.20504072]
[1673037584887,2.8081038,16965.0,16964.0,0.20504072]
[1673037585129,1.86841554,16965.0,16964.0,0.20504072]
[1673037585374,1.84891654,16965.0,16964.0,0.20504072]
[1673037585623,2.20231234,16965.0,16964.0,0.20504072]
[1673037585875,2.45468654,16965.0,16964.0,0.20504072]
[1673037586125,2.20231234,16965.0,16964.0,0.20504072]
[1673037586374,2.45468654,16965.0,16964.0,0.20504072]
[1673037586626,1.84891654,16965.0,16964.0,0.20513462]
[1673037586880,1.84391654,16965.0,16964.0,0.20504072]
[1673037587926,2.44968654,16965.0,16964.0,0.20504072]
[1673037588178,1.84391654,16965.0,16964.0,0.20504072]
[1673037589921,1.84391654,16965.0,16964.0,1.44492172]
[1673037589922,0.19338071,16965.0,16964.0,1.44492172]
[1673037590197,0.19338071,16965.0,16964.0,2.05069172]
[1673037590450,0.19338071,16965.0,16964.0,1.44501561]
[1673037590975,0.19338071,16965.0,16964.0,2.03449861]
[1673037591217,0.19338071,16965.0,16964.0,3.57753244]
[1673037591474,0.01,16965.0,16964.0,3.07846561]
[1673037591727,0.01,16965.0,16964.0,5.1507148]
[1673037591978,0.01,16965.0,16964.0,3.92938988]
[1673037592771,0.01,16965.0,16964.0,4.10617696]
[1673037593010,0.01,16965.0,16964.0,4.45338096]
[1673037593259,0.01,16965.0,16964.0,4.62938988]
[1673037593507,0.01,16965.0,16964.0,5.07038488]
[1673037593783,0.01,16965.0,16964.0,4.62938988]
[1673037594773,0.01,16965.0,16964.0,4.8051148]
[1673037595272,0.01,16965.0,16964.0,5.4963188]
[1673037596532,0.01,16965.0,16964.0,5.84956177]
[1673037598532,0.01,16965.0,16964.0,5.67343307]
[1673037600494,0.15753056,16967.0,16965.0,0.00811255]
[1673037600736,0.15753056,16967.0,16966.0,2.226653]
[1673037600982,0.15753056,16967.0,16966.0,2.526653]
[1673037601473,0.14843856,16967.0,16966.0,2.526653]
[1673037601732,0.14843856,16967.0,16966.0,3.226653]
[1673037601984,0.14843856,16967.0,16966.0,3.229653]
[1673037602234,0.23043856,16967.0,16966.0,3.229653]
[1673037603250,0.082,16967.0,16966.0,3.229653]
[1673037604266,0.082,16967.0,16966.0,3.22974688]
[1673037606081,0.082,16967.0,16966.0,4.44859428]
[1673037606792,0.082,16967.0,16966.0,5.38081832]
[1673037607285,0.082,16967.0,16966.0,4.44859428]
[1673037607547,0.082,16967.0,16966.0,4.71341538]
[1673037607794,0.082,16967.0,16966.0,4.44859428]
[1673037608012,0.082,16967.0,16966.0,5.38166389]
[1673037608263,0.082,16967.0,16966.0,4.71341538]
[1673037608518,0.082,16967.0,16966.0,5.55822033]
[1673037608764,0.082,16967.0,16966.0,5.29339923]
[1673037609013,0.082,16967.0,16966.0,5.73439423]
[1673037609260,0.082,16967.0,16966.0,5.59342866]
[1673037609754,0.7373653,16969.0,16966.0,5.41359637]
[1673037610006,0.00015,16969.0,16968.0,0.52]
[1673037610267,0.00015,16969.0,16968.0,3.815789]
[1673037610485,0.00015,16969.0,16968.0,3.81588287]
[1673037611000,3.13915905,16971.0,16968.0,3.81588287]
[1673037611250,2.4481348,16971.0,16970.0,0.3451]
[1673037611497,1.7109195,16971.0,16970.0,2.051341]
[1673037611757,1.7109195,16971.0,16970.0,2.05143486]
[1673037612256,1.7249195,16971.0,16970.0,1.86074386]
[1673037612512,1.7249195,16971.0,16970.0,3.16651386]
[1673037612757,0.1917195,16971.0,16970.0,3.33941386]
[1673037613768,0.1917195,16971.0,16970.0,2.73364386]
[1673037614783,0.1917195,16971.0,16970.0,3.33941386]
[1673037615903,0.0207178,16971.0,16970.0,3.33941386]
[1673037622158,0.0207178,16971.0,16970.0,5.42701386]
[1673037623463,0.0207178,16971.0,16970.0,4.38581386]
[1673037624981,0.02064438,16971.0,16970.0,4.38581386]
[1673037625753,0.02064438,16971.0,16970.0,3.34331386]
[1673037628039,0.25832227,16971.0,16970.0,2.86972]
[1673037628301,0.02064438,16971.0,16970.0,2.86972]
[1673037629061,0.02064438,16971.0,16970.0,2.264102]
[1673037629564,0.02064438,16971.0,16970.0,2.564102]
[1673037629817,0.02064438,16971.0,16970.0,2.391202]
[1673037630323,0.02064438,16971.0,16970.0,2.091202]
[1673037630573,0.02064438,16971.0,16970.0,2.09114677]
[1673037630833,0.16594438,16971.0,16970.0,2.09105]
[1673037631094,0.02064438,16971.0,16970.0,2.09105]
[1673037631365,0.02064438,16971.0,16970.0,1.501775]
[1673037631366,0.85935404,16971.0,16970.0,1.501775]
[1673037631620,2.89090152,16971.0,16970.0,0.737]
[1673037632910,2.89090152,16971.0,16970.0,0.05667602]
[1673037633435,2.87690152,16971.0,16970.0,0.01967602]
[1673037633739,3.70579186,16971.0,16967.0,0.763376]
[1673037633979,1.25954136,16970.0,16967.0,0.763376]
[1673037634216,1.24012918,16969.0,16968.0,0.00023843]
[1673037634474,0.6871508,16969.0,16968.0,0.589341]
[1673037635487,1.4243661,16969.0,16968.0,0.589341]
[1673037635739,1.4243661,16969.0,16968.0,0.61003727]
[1673037636519,1.4393661,16969.0,16968.0,0.61403727]
[1673037638864,1.4393661,16969.0,16968.0,0.02469627]
[1673037640178,1.99685808,16969.0,16968.0,0.02469627]
[1673037640700,2.60262808,16969.0,16968.0,0.02469627]
[1673037640953,1.86541278,16969.0,16968.0,0.02469627]
[1673037641200,1.25964278,16969.0,16968.0,0.02469627]
[1673037642211,1.86541278,16969.0,16968.0,0.02469627]
[1673037642473,2.01635708,16969.0,16968.0,0.02469627]
[1673037642759,1.99685808,16969.0,16968.0,0.02469627]
[1673037642999,2.60262808,16969.0,16968.0,0.02469627]
[1673037643235,1.99685808,16969.0,16968.0,0.02469627]
[1673037643482,1.25964278,16969.0,16968.0,0.02469627]
[1673037643992,0.7021508,16969.0,16968.0,0.02502666]
[1673037644260,1.4393661,16969.0,16968.0,0.02469627]
[1673037645687,2.0451361,16969.0,16968.0,0.02469627]
[1673037645957,1.4393661,16969.0,16968.0,0.02469627]
[1673037651462,1.9954978,16969.0,16968.0,0.02469627]
[1673037651712,2.6012678,16969.0,16968.0,0.02469627]
[1673037653761,2.6012678,16969.0,16968.0,0.01469627]
[1673037653762,3.1905768,16969.0,16968.0,0.01469627]
[1673037654259,2.5848068,16969.0,16968.0,0.01469627]
[1673037654523,3.1905768,16969.0,16968.0,0.01469627]
[1673037655779,2.6012678,16969.0,16968.0,0.01469627]
[1673037656315,2.0149968,16969.0,16968.0,0.01469627]
[1673037656588,1.9954978,16969.0,16968.0,0.01469627]
[1673037656879,2.6012678,16969.0,16968.0,0.01469627]
[1673037659355,1.9954978,16969.0,16968.0,0.01469627]
[1673037659871,2.6012678,16969.0,16968.0,0.01469627]
[1673037660124,1.9954978,16969.0,16968.0,0.01469627]
[1673037660379,2.6012678,16969.0,16968.0,0.01539627]
[1673037662067,1.9954978,16969.0,16968.0,0.01539627]
[1673037663569,2.6012678,16969.0,16968.0,0.01539627]
[1673037664315,1.9954978,16969.0,16968.0,0.01539627]
[1673037664574,2.6012678,16969.0,16968.0,0.01539627]
[1673037664826,1.9954978,16969.0,16968.0,0.01539627]
[1673037665077,2.6012678,16969.0,16968.0,0.01539627]
[1673037665326,1.9954978,16969.0,16968.0,0.01539627]
[1673037665557,2.6012678,16969.0,16968.0,0.01539627]
[1673037666070,1.9954978,16969.0,16968.0,0.01539627]
[1673037666319,2.6012678,16969.0,16968.0,0.01539627]
[1673037667113,2.0149968,16969.0,16968.0,0.01539627]
[1673037667383,2.17213901,16969.0,16968.0,0.01539627]
[1673037669414,2.43716314,16969.0,16968.0,0.01539627]
[1673037669673,2.17213901,16969.0,16968.0,0.01539627]
[1673037671448,2.43716314,16969.0,16968.0,0.01539627]
[1673037674218,2.79055894,16969.0,16968.0,0.01539627]
[1673037674476,2.61391773,16969.0,16968.0,0.01539627]
[1673037679265,2.98984398,16969.0,16968.0,0.01539627]
[1673037680299,2.99002125,16969.0,16968.0,0.0153087]
[1673037680548,2.63644818,16969.0,16968.0,0.0153087]
[1673037681542,2.83366646,16969.0,16968.0,0.0153087]
[1673037681788,3.68891462,16969.0,16968.0,0.0153087]
[1673037682025,3.00746646,16969.0,16968.0,0.0153087]
[1673037682289,4.63455805,16969.0,16968.0,0.0153087]
[1673037682536,4.12707187,16969.0,16968.0,0.0153087]
[1673037683310,4.82917591,16969.0,16968.0,0.0153087]
[1673037684322,4.12707187,16969.0,16968.0,0.0153087]
[1673037684573,4.67895227,16969.0,16968.0,0.0153087]
[1673037684832,4.14865586,16969.0,16968.0,0.0153087]
[1673037685089,3.55934686,16969.0,16968.0,0.0153087]
[1673037685347,3.57482822,16969.0,16968.0,0.0153087]
[1673037685629,3.82723283,16969.0,16968.0,0.0153087]
[1673037685876,3.22146283,16969.0,16968.0,0.0153087]
[1673037686121,3.82723283,16969.0,16968.0,0.0153087]
[1673037686861,3.22146283,16969.0,16968.0,0.0153087]
[1673037687115,3.57482083,16969.0,16968.0,0.0153087]
[1673037687634,2.98551183,16969.0,16968.0,0.0153087]
[1673037687905,2.78629047,16969.0,16968.0,0.0153087]
[1673037688151,2.98544319,16969.0,16968.0,0.0153087]
[1673037688400,3.59121319,16969.0,16968.0,0.0153087]
[1673037688649,2.98544319,16969.0,16968.0,0.0153087]
[1673037688886,3.59121319,16969.0,16968.0,0.0153087]
[1673037689130,2.98544319,16969.0,16968.0,0.0153087]
[1673037689385,3.59121319,16969.0,16968.0,0.0153087]
[1673037689629,3.22139419,16969.0,16968.0,0.0153087]
[1673037689871,3.82716419,16969.0,16968.0,0.0153087]
[1673037690083,3.22139419,16969.0,16968.0,0.0153087]
[1673037690331,3.82716419,16969.0,16968.0,0.0153087]
[1673037690546,3.5748514,16969.0,16968.0,0.0153087]
[1673037690863,4.1806214,16969.0,16968.0,0.0153087]
[1673037691109,3.5748514,16969.0,16968.0,0.0153087]
[1673037691320,4.18066596,16969.0,16968.0,0.0153087]
[1673037691575,3.57489596,16969.0,16968.0,0.0153087]
[1673037691788,4.18066596,16969.0,16968.0,0.0153087]
[1673037692032,3.57490172,16969.0,16968.0,0.0153087]
[1673037692248,4.18067172,16969.0,16968.0,0.0153087]
[1673037692462,3.22139419,16969.0,16968.0,0.0153087]
[1673037692706,3.82716419,16969.0,16968.0,0.0153087]
[1673037692953,3.22139419,16969.0,16968.0,0.0153087]
[1673037693200,4.18069081,16969.0,16968.0,0.0153087]
[1673037693437,3.57492081,16969.0,16968.0,0.0153087]
[1673037693729,3.65735763,16969.0,16968.0,0.02220519]
[1673037693976,2.78645909,16969.0,16968.0,0.02220519]
[1673037694229,3.39222909,16969.0,16968.0,0.02220519]
[1673037694449,2.98652044,16969.0,16968.0,0.02220519]
[1673037694669,3.59229044,16969.0,16968.0,0.02220519]
[1673037694928,2.98652044,16969.0,16968.0,0.02220519]
[1673037695166,3.59229044,16969.0,16968.0,0.02220519]
[1673037695417,3.59227984,16969.0,16968.0,0.02220519]
[1673037695677,3.23876382,16969.0,16968.0,0.02220519]
[1673037695926,3.22230282,16969.0,16968.0,0.02220519]
[1673037696186,4.18158875,16969.0,16968.0,0.02220519]
[1673037696432,3.22230282,16969.0,16968.0,0.02220519]
[1673037696681,3.82807282,16969.0,16968.0,0.02220519]
[1673037696933,3.22230282,16969.0,16968.0,0.02220519]
[1673037697208,4.18159618,16969.0,16968.0,0.02220519]
[1673037697460,3.57582618,16969.0,16968.0,0.02220519]
[1673037697685,4.18159618,16969.0,16968.0,0.02220519]
[1673037697937,3.37576483,16969.0,16968.0,0.02220519]
[1673037698177,3.64089282,16969.0,16968.0,0.02220519]
[1673037698783,2.60990523,16969.0,16968.0,0.0047]
[1673037699049,0.87890611,16969.0,16968.0,0.3513]
[1673037699306,0.6921508,16969.0,16968.0,1.546414]
[1673037699826,0.6921508,16969.0,16968.0,1.56391919]
[1673037700591,0.6921508,16969.0,16968.0,0.95814919]
[1673037700850,0.6921508,16969.0,16968.0,0.940644]
[1673037701104,0.6921508,16969.0,16968.0,1.546414]
[1673037701362,1.4293661,16969.0,16968.0,0.940644]
[1673037701852,1.60612141,16969.0,16968.0,0.95814919]
[1673037703575,1.4293661,16969.0,16968.0,0.95814919]
[1673037704346,1.60612141,16969.0,16968.0,0.95814919]
[1673037706627,1.60612141,16969.0,16968.0,0.36880519]
[1673037708407,1.87125678,16969.0,16968.0,0.36880519]
[1673037710143,1.60612141,16969.0,16968.0,0.36880519]
[1673037710408,1.87125678,16969.0,16968.0,0.36880519]
[1673037710664,1.60612141,16969.0,16968.0,0.36880519]
[1673037710919,1.87125678,16969.0,16968.0,0.36880519]
[1673037711700,1.60612141,16969.0,16968.0,0.36880519]
[1673037711958,1.87125678,16969.0,16968.0,0.36880519]
[1673037713259,1.87116851,16969.0,16968.0,0.36880519]
[1673037713998,2.56475988,16969.0,16968.0,0.36880519]
[1673037714500,3.17052988,16969.0,16968.0,0.36880519]
[1673037714761,2.56475988,16969.0,16968.0,0.3513]
[1673037715012,3.17052988,16969.0,16968.0,0.3513]
[1673037715267,2.58425888,16969.0,16968.0,0.3513]
[1673037715743,2.58425888,16969.0,16968.0,0.37195794]
[1673037715998,2.56475988,16969.0,16968.0,0.37195794]
[1673037716252,3.17052988,16969.0,16968.0,0.37195794]
[1673037716998,2.56475988,16969.0,16968.0,0.37195794]
[1673037717213,2.56475988,16969.0,16968.0,0.19885794]
[1673037717388,3.17052988,16969.0,16968.0,0.19885794]
[1673037717959,2.58425888,16969.0,16968.0,0.19885794]
[1673037718680,2.76080948,16969.0,16968.0,0.19885794]
[1673037718936,2.74131048,16969.0,16968.0,0.19885794]
[1673037719153,3.61215937,16969.0,16968.0,0.19885794]
[1673037719373,3.34708048,16969.0,16968.0,0.19885794]
[1673037719631,2.74131048,16969.0,16968.0,0.19885794]
[1673037719858,3.34708048,16969.0,16968.0,0.19885794]
[1673037720105,2.74131048,16969.0,16968.0,0.19885794]
[1673037720355,3.34708048,16969.0,16968.0,0.19885794]
[1673037720603,3.02587783,16969.0,16968.0,0.19885794]
[1673037720842,2.56469286,16969.0,16968.0,0.1782]
[1673037721089,3.61214883,16969.0,16968.0,0.1782]
[1673037721570,2.55916286,16969.0,16968.0,0.0047]
[1673037721782,3.16493286,16969.0,16968.0,0.02306261]
[1673037722263,3.60661883,16969.0,16968.0,0.02306261]
[1673037722486,3.34155048,16969.0,16968.0,0.02306261]
[1673037723269,3.54248844,16969.0,16968.0,0.02306261]
[1673037724590,3.18896508,16969.0,16968.0,0.02306261]
[1673037724848,3.18896508,16969.0,16968.0,0.0047]
[1673037725872,3.18896508,16969.0,16968.0,0.02535794]
[1673037726824,3.18896508,16969.0,16968.0,0.0047]
[1673037727603,3.77827408,16969.0,16968.0,0.0047]
[1673037727850,3.77827408,16969.0,16968.0,0.02536291]
[1673037728101,3.33658811,16969.0,16968.0,0.02536291]
[1673037728836,3.33658811,16969.0,16968.0,0.0047]
[1673037732856,3.92589711,16969.0,16968.0,0.0047]
[1673037738409,4.36773064,16969.0,16968.0,0.0047]
[1673037743146,3.92589711,16969.0,16968.0,0.0047]
[1673037745387,3.92589711,16969.0,16968.0,0.00458628]
[1673037748882,4.45619352,16969.0,16968.0,0.00458628]
[1673037749106,3.92589711,16969.0,16968.0,0.00458628]
[1673037749335,4.45619352,16969.0,16968.0,0.00458628]
[1673037751879,4.61885368,16969.0,16968.0,0.00458628]
[1673037753141,4.45619352,16969.0,16968.0,0.00458628]
[1673037755511,3.9393702,16969.0,16968.0,0.00458628]
[1673037755723,4.05849833,16969.0,16968.0,0.00458628]
[1673037755973,3.77165085,16969.0,16968.0,0.0037142]
[1673037756230,3.40907379,16969.0,16968.0,0.0037142]
[1673037756481,3.40907379,16969.0,16968.0,4.2e-06]
[1673037756729,4.24230021,16969.0,16968.0,4.2e-06]
[1673037756992,4.54119938,16969.0,16968.0,4.2e-06]
[1673037757482,4.52619938,16969.0,16968.0,4.2e-06]
[1673037757724,5.97859938,16969.0,16968.0,4.2e-06]
[1673037757975,5.84359938,16969.0,16968.0,4.2e-06]
[1673037758217,6.27959938,16969.0,16968.0,4.2e-06]
[1673037758474,6.87347651,16969.0,16968.0,4.2e-06]
[1673037758976,6.74597651,16969.0,16968.0,4.2e-06]
[1673037759216,6.88197651,16969.0,16968.0,4.2e-06]
[1673037759461,6.58197651,16969.0,16968.0,4.2e-06]
[1673037761232,5.98642798,16969.0,16968.0,4.2e-06]
[1673037765267,6.34258088,16969.0,16968.0,4.2e-06]
[1673037765522,5.81242798,16969.0,16968.0,4.2e-06]